bitfinex-derivatives/quotes_SOLF0:USTF0_20241216
["timestamp","ask_amount","ask_price","bid_price","bid_amount"]
[1734361964431,0.30723,217.35,217.28,2.76]
[1734361964726,0.30723,217.35,217.34,2.3006]
[1734361967226,0.30723,217.35,217.28,2.76]
[1734361968035,11.18654765,217.34,217.23,4.7875]
[1734361968232,11.18654765,217.34,217.23,1.5503]
[1734361968832,11.18654765,217.34,217.23,12.73684765]
[1734361969231,2.3007,217.33,217.23,12.73684765]
[1734361970328,2.301,217.31,217.26,2.3014]
[1734361970534,2.76,217.3,217.17,11.18654765]
[1734361971032,2.76,217.3,217.2,5.61064799]
[1734361972130,2.76,217.3,217.2,16.79719564]
[1734361972332,13.94654765,217.32,217.2,16.79719564]
[1734361973237,13.94654765,217.32,217.17,13.94654765]
[1734361973936,11.18654765,217.29,217.16,1.6238]
[1734361974532,2.3017,217.25,217.17,16.76838542]
[1734361974734,2.76,217.27,217.17,16.76838542]
[1734361975135,1.5467,217.31,217.17,16.76838542]
[1734361975335,11.18654765,217.32,217.2,11.18654765]
[1734361975836,2.3011,217.3,217.2,11.18654765]
[1734361976134,11.18654765,217.32,217.2,11.18654765]
[1734361976330,2.3009,217.31,217.25,2.3015]
[1734361976724,2.3009,217.31,217.2,11.18654765]
[1734361977239,5.0607,217.33,217.2,11.18654765]
[1734361977629,5.0607,217.33,217.28,2.3012]
[1734361979137,8.05674736,217.34,217.31,2.3009]
[1734361979331,8.05674736,217.35,217.26,11.18654765]
[1734361979536,8.05674736,217.37,217.26,11.18654765]
[1734361980034,11.18654765,217.35,217.25,1.603]
[1734361980232,8.07121029,217.34,217.25,1.603]
[1734361980832,2.3007,217.33,217.29,2.3011]
[1734361981636,2.3007,217.33,217.25,1.603]
[1734361981835,2.3009,217.31,217.24,1.5762]
[1734361982140,11.18654765,217.29,217.21,2.76]
[1734361982337,11.18654765,217.29,217.18,1.4831]
[1734361982338,2.3014,217.27,217.18,1.4831]
[1734361982635,2.76,217.3,217.18,1.4831]
[1734361982840,2.76,217.3,217.2,11.18654765]
[1734361983040,11.18654765,217.35,217.23,11.18654765]
[1734361983342,11.18654765,217.35,217.3,2.301]
[1734361983343,8.07886904,217.34,217.3,2.301]
[1734361983638,2.3006,217.34,217.3,2.301]
[1734361983942,11.18654765,217.35,217.29,2.3011]
[1734361984138,11.18654765,217.35,217.24,1.5422]
[1734361984545,2.3007,217.34,217.24,1.5422]
[1734361984843,11.18654765,217.35,217.24,1.5422]
[1734361985043,2.3008,217.32,217.29,2.3011]
[1734361985246,11.18654765,217.35,217.24,1.5422]
[1734361985639,5.66078701,217.42,217.25,11.18654765]
[1734361985939,19.23892133,217.42,217.28,11.18654765]
[1734361986145,8.08138789,217.41,217.29,5.8734]
[1734361986341,8.08138789,217.42,217.31,11.18654765]
[1734361986542,0.34081,217.44,217.34,11.18654765]
[1734361986737,0.34081,217.44,217.37,11.18654765]
[1734361986946,0.34081,217.44,217.37,13.94654765]
[1734361987242,0.34081,217.44,217.43,2.2997]
[1734361987636,0.34081,217.44,217.37,13.94654765]
[1734361988649,0.34081,217.44,217.43,2.2997]
[1734361988844,2.76,217.49,217.37,13.94654765]
[1734361989044,2.2988,217.51,217.46,2.2993]
[1734361989243,2.2988,217.51,217.37,13.94654765]
[1734361989244,11.18654765,217.47,217.35,6.98605333]
[1734361989451,11.18654765,217.42,217.35,6.98605333]
[1734361989645,11.18654765,217.45,217.35,6.98605333]
[1734361990445,2.2995,217.45,217.35,6.98605333]
[1734361990644,11.18654765,217.48,217.35,6.98605333]
[1734361990842,11.18654765,217.48,217.36,11.18654765]
[1734361991047,11.18654765,217.42,217.3,11.18654765]
[1734361991241,11.18654765,217.42,217.3,14.40654765]
[1734361991643,11.18654765,217.42,217.34,5.39021032]
[1734361992247,3.22,217.43,217.34,5.39021032]
[1734361992453,11.18654765,217.48,217.34,5.39021032]
[1734361992751,2.2993,217.47,217.36,11.18654765]
[1734361992951,2.2993,217.47,217.36,14.40654765]
[1734361993846,2.299,217.49,217.39,11.18654765]
[1734361994042,3.22,217.51,217.39,11.18654765]
[1734361994244,12.74434765,217.54,217.42,11.18654765]
[1734361994446,2.2988,217.52,217.42,11.18654765]
[1734361994644,11.18654765,217.54,217.42,11.18654765]
[1734361995045,11.18654765,217.54,217.42,14.40654765]
[1734361995654,0.69144563,217.53,217.42,14.40654765]
[1734361996052,1.4836,217.55,217.42,14.40654765]
[1734361996350,11.87795861,217.54,217.42,14.40654765]
[1734361996549,11.18654765,217.51,217.42,3.22]
[1734361996848,11.18654765,217.51,217.4,2.9991]
[1734361996849,2.2991,217.48,217.4,2.9991]
[1734361997552,11.18654765,217.51,217.4,2.9991]
[1734361997747,1.4836,217.55,217.4,2.9991]
[1734361997748,11.18654765,217.54,217.4,2.9991]
[1734361997949,0.69152367,217.53,217.4,2.9991]
[1734361998154,0.69152367,217.53,217.46,2.2993]
[1734361998860,0.69145019,217.52,217.46,2.2993]
[1734361999158,2.2989,217.5,217.45,2.2994]
[1734361999757,2.2988,217.52,217.42,11.18654765]
[1734362000057,0.69149672,217.51,217.42,11.18654765]
[1734362000254,0.69149672,217.53,217.4,2.9991]
[1734362000553,11.18654765,217.51,217.4,2.9991]
[1734362000753,2.2992,217.48,217.43,2.2996]
[1734362001055,0.69153354,217.5,217.4,2.9991]
[1734362001257,14.40654765,217.51,217.4,2.9991]
[1734362001452,11.18654765,217.48,217.16,193.35558361]
[1734362001654,11.18654765,217.45,217.31,11.18654765]
[1734362001854,11.18654765,217.45,217.31,12.66434765]
[1734362002058,11.18654765,217.42,217.31,1.4778]
[1734362002553,3.22,217.43,217.26,2.963]
[1734362002554,11.18654765,217.39,217.26,2.963]
[1734362002853,11.18654765,217.39,217.32,5.51085755]
[1734362003056,12.74584765,217.42,217.32,5.51085755]
[1734362003552,0.69182325,217.41,217.32,5.51085755]
[1734362003759,14.40654765,217.42,217.32,5.51085755]
[1734362003956,16.70644765,217.42,217.36,2.3003]
[1734362004254,14.40654765,217.42,217.36,2.3003]
[1734362004551,2.2999,217.41,217.37,2.3003]
[1734362004758,2.2999,217.41,217.32,6.98295755]
[1734362005950,2.2999,217.41,217.35,2.3004]
[1734362006158,2.2999,217.41,217.32,6.98295755]
[1734362006653,2.2999,217.41,217.37,2.3003]
[1734362006861,14.40654765,217.42,217.37,2.3003]
[1734362007764,14.40654765,217.42,217.35,2.3004]
[1734362008158,11.18654765,217.45,217.32,6.98295755]
[1734362008957,2.2996,217.44,217.32,6.98295755]
[1734362009167,3.22,217.47,217.34,11.18654765]
[1734362009460,0.69166417,217.46,217.34,11.18654765]
[1734362009657,2.2995,217.45,217.34,11.18654765]
[1734362009861,15.96584765,217.48,217.34,11.18654765]
[1734362010063,11.18654765,217.45,217.33,3.22]
[1734362010264,2.2998,217.42,217.37,2.3003]
[1734362010762,2.2999,217.41,217.36,2.3004]
[1734362011364,11.18654765,217.42,217.36,2.3004]
[1734362011760,14.40654765,217.42,217.32,5.51085755]
[1734362011961,11.18654765,217.36,217.28,3.22]
[1734362012165,11.18654765,217.36,217.31,2.3009]
[1734362012559,2.3004,217.37,217.3,5.55239833]
[1734362012763,11.18654765,217.39,217.33,2.3007]
[1734362013166,11.18654765,217.39,217.3,5.55239833]
[1734362013968,11.18654765,217.39,217.35,2.3004]
[1734362014269,2.3,217.4,217.35,2.3004]
[1734362014570,14.40654765,217.42,217.3,5.55239833]
[1734362014765,11.18654765,217.39,217.3,5.55239833]
[1734362014965,2.3005,217.36,217.3,5.55239833]
[1734362015365,2.3005,217.36,217.31,2.3008]
[1734362015670,11.18654765,217.39,217.3,5.55239833]
[1734362016070,2.3005,217.36,217.31,2.3009]
[1734362017171,2.3006,217.35,217.31,2.3009]
[1734362018869,2.3011,217.3,217.19,11.18654765]
[1734362019074,2.3011,217.3,217.19,14.40654765]
[1734362019577,11.18654765,217.33,217.26,2.3014]
[1734362019767,11.18654765,217.33,217.19,14.40654765]
[1734362019967,11.18654765,217.3,217.19,11.18654765]
[1734362020174,11.18654765,217.3,217.2,5.60516557]
[1734362020468,3.22,217.29,217.2,5.60516557]
[1734362021473,3.22,217.29,217.16,15.94594765]
[1734362021474,11.18654765,217.27,217.16,15.94594765]
[1734362021672,11.18654765,217.27,217.16,12.72594765]
[1734362021865,11.18654765,217.27,217.16,1.5394]
[1734362022075,11.18654765,217.24,217.16,5.55432005]
[1734362022272,3.22,217.23,217.1,11.18654765]
[1734362022573,3.22,217.23,217.09,1.4677]
[1734362022574,11.18654765,217.21,217.09,1.4677]
[1734362023076,2.3026,217.16,217.1,2.3031]
[1734362023269,11.18654765,217.15,217.04,11.18654765]
[1734362023469,3.22,217.14,217.04,11.18654765]
[1734362023872,5.5228,217.14,217.08,2.3033]
[1734362024170,3.22,217.14,217.07,5.53608022]
[1734362024575,5.5227,217.14,217.08,2.3034]
[1734362024873,5.5227,217.14,217.07,5.53608022]
[1734362025969,3.22,217.14,217.07,5.53608022]
[1734362026175,1.5202,217.19,217.07,5.53608022]
[1734362026176,11.18654765,217.18,217.07,5.53608022]
[1734362026368,1.5073,217.2,217.07,16.72262787]
[1734362026573,11.18654765,217.21,217.17,2.3024]
[1734362026574,3.22,217.21,217.17,2.3024]
[1734362026777,11.18654765,217.24,217.07,5.53608022]
[1734362026778,11.18654765,217.24,217.13,11.18654765]
[1734362026974,14.40654765,217.24,217.13,11.18654765]
[1734362027275,14.40654765,217.24,217.19,2.3022]
[1734362027471,14.40654765,217.24,217.13,11.18654765]
[1734362027775,3.22,217.24,217.13,14.40654765]
[1734362028070,3.22,217.24,217.14,1.4733]
[1734362028278,3.22,217.24,217.2,2.302]
[1734362029880,3.22,217.24,217.14,1.4733]
[1734362030071,3.22,217.24,217.21,2.3019]
[1734362030282,1.5798,217.27,217.14,1.4733]
[1734362030283,3.22,217.26,217.14,1.4733]
[1734362030676,5.5215,217.26,217.2,2.302]
[1734362031082,3.8812,217.27,217.22,2.3018]
[1734362031282,3.8812,217.27,217.14,1.4733]
[1734362031283,1.5798,217.27,217.15,1.5801]
[1734362031677,3.22,217.28,217.21,2.302]
[1734362031881,3.22,217.28,217.15,1.5801]
[1734362032283,2.3014,217.27,217.15,1.5801]
[1734362033581,2.3014,217.27,217.21,2.3019]
[1734362035577,2.3016,217.25,217.2,2.3021]
[1734362035784,3.22,217.28,217.15,1.5801]
[1734362036288,3.22,217.27,217.15,1.5801]
[1734362036677,3.22,217.27,217.23,2.3017]
[1734362036873,3.22,217.27,217.15,1.5801]
[1734362037678,5.5214,217.27,217.15,1.5801]
[1734362038885,5.5214,217.27,217.18,2.3022]
[1734362039080,5.5214,217.27,217.15,1.5801]
[1734362039382,5.5214,217.27,217.19,2.3022]
[1734362039383,3.22,217.27,217.19,2.3022]
[1734362039574,3.22,217.27,217.15,1.5801]
[1734362039575,17.91739644,217.25,217.15,1.5801]
[1734362039774,17.91739644,217.21,217.07,8.70481356]
[1734362039981,2.3023,217.18,217.13,2.3028]
[1734362040176,21.13739644,217.21,217.07,8.68301356]
[1734362040384,21.13739644,217.21,217.07,7.07461356]
[1734362040580,21.13739644,217.21,217.11,2.303]
[1734362040785,21.13739644,217.21,217.07,7.07461356]
[1734362041185,2.3025,217.16,217.07,7.07461356]
[1734362041380,17.91739644,217.17,217.07,7.07461356]
[1734362041576,2.3028,217.14,217.09,2.3032]
[1734362041783,5.5228,217.14,217.09,2.3032]
[1734362042392,2.3029,217.13,217.08,2.3034]
[1734362042683,3.22,217.14,217.04,1.6084]
[1734362042877,17.91739644,217.13,217.01,1.4974]
[1734362043075,17.91739644,217.05,216.93,1.4759]
[1734362043275,3.22,217.04,216.93,1.4759]
[1734362043483,2.3039,217.03,216.96,2.3046]
[1734362044077,3.22,217.04,216.93,1.4759]
[1734362044280,17.91739644,217.05,216.95,5.5039174]
[1734362044482,4.7232,217.12,216.95,5.5039174]
[1734362044785,5.5231,217.11,217.04,2.3037]
[1734362045083,3.22,217.11,216.95,5.5039174]
[1734362046585,3.22,217.15,216.98,17.91739644]
[1734362046786,3.22,217.15,216.99,3.1043]
[1734362046988,3.22,217.15,217.0,3.22]
[1734362047286,2.3028,217.13,217.08,2.3034]
[1734362047787,3.22,217.15,217.0,3.22]
[1734362048784,17.91739644,217.13,216.99,3.1043]
[1734362049386,3.22,217.15,216.99,3.1043]
[1734362049581,2.3028,217.14,217.09,2.3032]
[1734362049994,17.91739644,217.16,217.02,3.3]
[1734362049995,11.21259738,217.13,217.02,3.3]
[1734362050186,2.3029,217.12,217.07,2.3034]
[1734362050385,11.21259738,217.1,216.99,14.31689738]
[1734362050686,2.3038,217.05,217.0,2.3042]
[1734362050881,11.21259738,217.01,216.95,5.5039174]
[1734362051389,11.21259738,217.01,216.97,2.3045]
[1734362052392,11.21259738,217.01,216.98,2.3044]
[1734362052695,11.21259738,217.01,216.95,5.5039174]
[1734362053195,11.21259738,217.01,216.99,2.3042]
[1734362053401,11.21259738,217.01,216.95,5.5039174]
[1734362053601,11.21259738,217.01,216.98,2.3044]
[1734362054097,11.21259738,217.01,217.0,2.3042]
[1734362054299,11.21259738,217.04,216.95,5.5039174]
[1734362054490,3.3,217.06,216.95,5.5039174]
[1734362055295,1.5053,217.09,216.95,8.8039174]
[1734362055497,14.51259738,217.1,216.97,11.21259738]
[1734362055691,14.51259738,217.1,217.06,2.3035]
[1734362055894,11.21259738,217.07,216.95,8.8039174]
[1734362056893,3.3,217.1,216.93,1.4759]
[1734362056894,13.51669738,217.01,216.93,1.4759]
[1734362057099,11.21259738,217.01,216.93,1.4759]
[1734362057394,11.21259738,217.01,216.94,5.49764867]
[1734362058196,13.51679738,217.01,216.96,2.3047]
[1734362058499,13.51679738,217.01,216.91,3.0531]
[1734362058500,11.21259738,217.01,216.93,5.39622301]
[1734362059401,3.3,217.03,216.93,2.3049]
[1734362059402,13.51709738,216.98,216.93,2.3049]
[1734362059594,11.21259738,216.98,216.88,1.5094]
[1734362060198,11.21259738,216.98,216.85,3.3]
[1734362060400,3.3,216.97,216.89,5.54067575]
[1734362060594,11.21259738,216.95,216.83,4.856]
[1734362060795,11.21259738,216.95,216.83,1.556]
[1734362061702,11.21259738,216.92,216.83,1.556]
[1734362062904,11.21259738,216.89,216.81,5.40209025]
[1734362063297,11.21259738,216.86,216.79,0.25432]
[1734362063902,4.7988,216.91,216.87,2.3056]
[1734362063903,7.104,216.91,216.87,2.3056]
[1734362064209,11.21259738,216.92,216.87,2.3056]
[1734362064508,3.3,216.93,216.81,11.21259738]
[1734362065407,3.3,216.93,216.89,2.3054]
[1734362065609,3.3,216.93,216.81,11.21259738]
[1734362065907,11.21259738,216.95,216.81,11.21259738]
[1734362066112,14.51259738,216.95,216.82,1.5072]
[1734362066509,14.51259738,216.95,216.9,2.3052]
[1734362066510,3.3,216.95,216.9,2.3052]
[1734362066705,3.3,216.95,216.82,1.5072]
[1734362066904,21.26808742,216.95,216.79,8.98298607]
[1734362067402,1.5577,216.99,216.79,8.98298607]
[1734362067403,317.75510916,217.33,216.81,17.96808742]
[1734362067604,317.75510916,217.33,216.8,52.74]
[1734362067605,5.55047194,217.27,217.15,17.96808742]
[1734362067905,5.55047194,217.27,217.03,17.96808742]
[1734362067906,3.3,217.31,217.19,17.96808742]
[1734362068102,17.96808742,217.3,217.13,5.41260984]
[1734362068307,17.96808742,217.3,217.07,17.96808742]
[1734362068704,8.82777176,217.31,217.07,17.96808742]
[1734362068705,2.3023,217.19,217.07,17.96808742]
[1734362068903,3.3,217.18,217.07,17.96808742]
[1734362069106,3.3,217.17,217.07,17.96808742]
[1734362069910,3.3,217.16,217.06,2.3036]
[1734362070209,3.3,217.15,216.99,17.96808742]
[1734362070412,4.9245,217.14,216.99,17.96808742]
[1734362070612,4.9245,217.14,217.04,2.3038]
[1734362070913,3.3,217.13,216.99,17.96808742]
[1734362071213,3.3,217.13,217.02,2.304]
[1734362071412,3.3,217.12,216.99,17.96808742]
[1734362071614,1.6245,217.14,217.03,17.96808742]
[1734362071810,20.99598742,217.21,217.03,17.96808742]
[1734362072005,4.9245,217.2,217.07,17.96808742]
[1734362072211,5.54139774,217.18,217.03,17.96808742]
[1734362072511,3.3,217.17,217.09,2.3032]
[1734362072710,3.3,217.17,217.03,17.96808742]
[1734362073008,3.3,217.17,217.07,2.3035]
[1734362073214,3.3,217.17,217.03,17.96808742]
[1734362073616,3.3,217.17,217.07,2.3035]
[1734362073813,3.3,217.17,217.03,17.96808742]
[1734362074113,5.4910566,217.19,217.03,17.96808742]
[1734362074314,3.3,217.16,217.03,17.96808742]
[1734362074714,1.6245,217.2,217.12,2.303]
[1734362074919,3.3,217.19,217.07,17.96808742]
[1734362075213,6.3279,217.21,217.07,17.96808742]
[1734362075418,3.0279,217.21,217.16,2.3025]
[1734362075621,1.5063,217.21,217.11,17.96808742]
[1734362076513,1.5063,217.21,217.18,2.3023]
[1734362076924,3.3,217.22,217.11,17.96808742]
[1734362077217,3.3,217.26,217.22,2.3019]
[1734362077405,3.3,217.26,217.15,17.96808742]
[1734362078308,3.3,217.26,217.09,17.96808742]
[1734362078925,17.96808742,217.24,217.09,17.96808742]
[1734362079113,20.26988742,217.24,217.17,2.3024]
[1734362079914,17.96808742,217.24,217.15,2.3026]
[1734362080214,17.96808742,217.2,217.05,21.00038742]
[1734362080414,17.96808742,217.2,217.05,3.0323]
[1734362080614,17.96808742,217.2,217.11,2.303]
[1734362080615,2.3024,217.18,217.11,2.303]
[1734362081513,2.3026,217.16,217.09,2.3033]
[1734362081917,6.2365,217.19,217.09,2.3033]
[1734362082113,2.3027,217.15,217.09,2.3033]
[1734362082512,2.3027,217.15,217.05,6.9624029]
[1734362082718,2.3028,217.14,217.07,2.3034]
[1734362082920,3.22,217.13,217.07,2.3034]
[1734362083314,5.5229,217.13,217.07,2.3034]
[1734362084013,3.22,217.13,216.96,17.96808742]
[1734362084213,3.22,217.13,216.97,3.22]
[1734362085117,1.5703,217.15,217.04,5.502466]
[1734362085417,3.22,217.17,217.04,5.502466]
[1734362086418,5.5224,217.17,217.11,2.3031]
[1734362086916,3.22,217.17,217.04,5.502466]
[1734362087311,5.5227,217.17,217.04,5.502466]
[1734362087716,5.5227,217.17,217.04,8.591666]
[1734362088015,3.0165,217.19,217.04,26.55975342]
[1734362088323,3.22,217.21,217.08,17.96808742]
[1734362088513,3.22,217.21,217.09,3.22]
[1734362088712,3.22,217.23,217.18,2.3024]
[1734362088919,1.4871,217.24,217.09,3.22]
[1734362089121,1.4947,217.31,217.12,17.96808742]
[1734362089317,1.4947,217.31,217.16,17.96808742]
[1734362089516,3.22,217.3,217.17,3.0916]
[1734362089716,3.22,217.32,217.21,2.3021]
[1734362089917,3.22,217.32,217.17,4.6454]
[1734362090417,2.3013,217.3,217.21,2.3022]
[1734362090625,21.18808742,217.32,217.17,4.6454]
[1734362090822,0.6924082,217.31,217.17,4.6454]
[1734362091023,3.22,217.32,217.17,4.6454]
[1734362091521,3.22,217.32,217.28,2.3015]
[1734362092225,5.5211,217.32,217.26,2.3016]
[1734362092418,2.3011,217.32,217.17,33.74619242]
[1734362092827,2.3011,217.32,217.26,2.3016]
[1734362093021,6.28,217.33,217.26,2.3016]
[1734362093221,29.10079242,217.31,217.17,4.6454]
[1734362093423,29.10079242,217.31,217.24,2.3019]
[1734362093725,31.40199242,217.31,217.17,4.6454]
[1734362093918,2.3012,217.31,217.27,2.3016]
[1734362094115,52.72,217.35,217.2,5.43514183]
[1734362094116,3.22,217.34,217.2,5.43514183]
[1734362094323,2.3011,217.32,217.2,5.43514183]
[1734362094725,2.3011,217.32,217.28,2.3015]
[1734362095024,2.3011,217.32,217.2,5.43514183]
[1734362095216,3.22,217.34,217.26,2.3016]
[1734362095421,29.10079242,217.27,216.98,4.6092]
[1734362095622,29.10079242,217.23,217.07,3.122]
[1734362095920,3.22,217.22,217.08,1.5109]
[1734362096121,3.22,217.22,217.15,5.41725822]
[1734362096721,5.5221,217.22,217.15,5.41725822]
[1734362096925,3.22,217.22,217.08,1.5109]
[1734362097319,2.3025,217.19,217.14,2.3029]
[1734362097518,3.22,217.22,217.08,1.5109]
[1734362097723,2.3028,217.16,217.11,2.3032]
[1734362097923,29.10079242,217.19,217.11,2.3032]
[1734362098321,2.3028,217.16,217.11,2.3032]
[1734362098527,5.5228,217.16,217.11,2.3032]
[1734362098732,3.22,217.16,217.1,2.3034]
[1734362099529,3.22,217.16,217.13,2.3031]
[1734362099931,1.4769,217.22,217.08,5.58533547]
[1734362100128,3.22,217.21,217.09,3.22]
[1734362100528,3.22,217.21,217.16,2.3027]
[1734362100726,3.22,217.22,217.09,3.22]
[1734362101033,5.5217,217.27,217.23,2.302]
[1734362101231,3.22,217.27,217.1,29.10079242]
[1734362101533,2.3017,217.26,217.21,2.3022]
[1734362101728,29.10079242,217.29,217.1,29.10079242]
[1734362101928,32.32079242,217.29,217.1,29.10079242]
[1734362102130,32.32079242,217.29,217.14,29.10079242]
[1734362102436,29.10079242,217.29,217.15,4.8272]
[1734362102629,3.22,217.32,217.15,4.8272]
[1734362102933,5.5211,217.32,217.2,2.3023]
[1734362103135,3.22,217.32,217.21,1.6212]
[1734362103329,29.10079242,217.29,217.15,1.6072]
[1734362103534,2.3018,217.25,217.2,2.3023]
[1734362104531,2.302,217.23,217.19,2.3024]
[1734362104930,2.3021,217.22,217.18,2.3025]
[1734362105130,3.22,217.26,217.15,1.6072]
[1734362105428,3.0824,217.32,217.16,3.22]
[1734362105429,3.22,217.3,217.16,3.22]
[1734362106031,3.22,217.3,217.28,2.3015]
[1734362106231,30.61849242,217.33,217.18,29.10079242]
[1734362106433,29.10079242,217.33,217.18,29.10079242]
[1734362106734,29.10079242,217.33,217.19,1.6235]
[1734362107235,29.10079242,217.33,217.24,2.3019]
[1734362107531,2.3015,217.29,217.24,2.3019]
[1734362107730,0.69232626,217.32,217.19,1.6235]
[1734362107925,29.10079242,217.33,217.19,1.6235]
[1734362108131,29.10079242,217.37,217.21,5.50814954]
[1734362108333,3.08,217.36,217.31,2.3011]
[1734362108529,5.3807,217.36,217.31,2.3011]
[1734362108731,29.10079242,217.37,217.23,3.08]
[1734362109433,29.10079242,217.33,217.22,1.4705]
[1734362109628,31.40229242,217.29,217.22,1.4705]
[1734362110037,31.40229242,217.29,217.24,2.3019]
[1734362110229,3.08,217.32,217.22,1.4705]
[1734362110836,2.3013,217.31,217.25,2.3017]
[1734362111034,3.08,217.32,217.25,2.3017]
[1734362111633,3.08,217.32,217.24,2.3019]
[1734362111828,29.10079242,217.29,217.24,2.3019]
[1734362112232,29.10079242,217.29,217.21,5.50814954]
[1734362112233,31.40229242,217.29,217.21,5.50814954]
[1734362112436,2.3015,217.29,217.21,5.50814954]
[1734362112741,17.91565367,217.3,217.21,5.50814954]
[1734362112937,17.91565367,217.3,217.16,1.6111]
[1734362113335,2.3019,217.24,217.19,2.3024]
[1734362113739,20.99565367,217.26,217.16,1.6111]
[1734362113936,1.6118,217.3,217.25,2.3018]
[1734362113937,23.29695367,217.3,217.25,2.3018]
[1734362114137,20.99565367,217.3,217.18,5.48675249]
[1734362114836,17.91565367,217.26,217.15,1.6072]
[1734362115232,2.3021,217.22,217.17,2.3025]
[1734362115436,5.3821,217.22,217.17,2.3025]
[1734362115636,5.3821,217.22,217.15,7.02982521]
[1734362115637,3.08,217.22,217.15,7.02982521]
[1734362115845,3.08,217.22,217.2,2.3022]
[1734362116037,3.08,217.22,217.15,7.02982521]
[1734362116238,3.08,217.29,217.15,10.10982521]
[1734362116637,3.08,217.29,217.15,7.02982521]
[1734362116837,17.91565367,217.22,217.04,4.5732]
[1734362117043,2.3024,217.2,217.04,19.40885367]
[1734362117242,3.08,217.21,217.08,17.91565367]
[1734362117444,3.08,217.21,217.19,2.3023]
[1734362117644,3.08,217.21,217.08,17.91565367]
[1734362117947,2.3027,217.17,217.12,2.3031]
[1734362118141,2.3027,217.17,217.06,3.08]
[1734362118540,2.303,217.15,217.09,2.3034]
[1734362118740,3.08,217.15,217.04,1.4932]
[1734362118945,17.91565367,217.14,217.04,1.4932]
[1734362119152,2.3034,217.1,217.04,1.4932]
[1734362119647,2.3032,217.13,217.07,2.3037]
[1734362119843,17.91565367,217.14,217.04,1.4932]
[1734362120043,17.91565367,217.14,217.04,7.02915176]
[1734362120640,2.3034,217.1,217.05,2.3038]
[1734362120846,3.08,217.09,217.02,5.53982382]
[1734362121050,3.08,217.08,217.02,5.53982382]
[1734362121350,3.08,217.07,217.02,5.53982382]
[1734362121545,3.08,217.07,216.96,3.1953]
[1734362122341,3.08,217.07,216.9,1.4722]
[1734362122342,17.91565367,217.05,216.9,1.4722]
[1734362122542,17.91565367,217.01,216.9,1.4722]
[1734362122745,2.3048,216.97,216.91,2.3054]
[1734362123045,3.08,217.0,216.84,1.5843]
[1734362123347,17.91565367,216.97,216.84,3.1656]
[1734362123743,17.91565367,216.93,216.82,0.92242413]
[1734362124046,3.08,216.92,216.85,5.49302717]
[1734362124643,17.91565367,216.93,216.85,5.49302717]
[1734362124844,3.08,216.95,216.85,5.49302717]
[1734362125053,2.3051,216.94,216.85,7.79892717]
[1734362125257,17.91565367,216.93,216.82,0.92242413]
[1734362125753,3.08,216.92,216.84,5.49302717]
[1734362126146,17.91565367,216.93,216.87,2.3058]
[1734362126351,17.91565367,216.93,216.84,5.49302717]
[1734362126352,3.08,216.92,216.84,5.49302717]
[1734362126550,3.08,216.92,216.82,0.92242413]
[1734362126551,17.91565367,216.89,216.82,0.92242413]
[1734362126748,17.91565367,216.85,216.82,0.92242413]
[1734362126950,17.91565367,216.85,216.78,5.49927742]
[1734362126951,3.08,216.84,216.78,5.49927742]
[1734362127150,3.08,216.84,216.72,1.5128]
[1734362127455,17.91565367,216.81,216.74,2.3071]
[1734362127652,17.91565367,216.81,216.49,4.6198]
[1734362127853,3.08,216.84,216.67,2.3079]
[1734362127854,17.91565367,216.77,216.67,2.3079]
[1734362128057,29.26049738,216.75,216.67,2.3079]
[1734362128259,3.28,216.74,216.69,5.58122396]
[1734362128650,3.28,216.74,216.7,2.3076]
[1734362129154,3.28,216.74,216.69,2.3077]
[1734362129354,3.28,216.74,216.64,1.5224]
[1734362129859,3.1622,216.8,216.67,5.64323756]
[1734362130359,29.26049738,216.81,216.75,2.307]
[1734362130551,254.20408733,217.12,216.67,5.64323756]
[1734362130552,29.26049738,216.85,216.67,5.64323756]